fUSD/lending_fUSD_20250225
["ID","MTS","AMOUNT","RATE_DAILY","PERIOD"]
[354397326,1740471037723,-156.0,0.00047955,90]
[354397327,1740471037733,-1000.0,0.00048655,2]
[354397328,1740471037743,-500.0,0.00048658,2]
[354397329,1740471037752,-197.18,0.00048942,2]
[354397330,1740471037762,-18644.28,0.00049,120]
[354397331,1740471037772,-267.04,0.00049079,2]
[354397332,1740471037782,-2939.88,0.00049242,2]
[354397333,1740471037792,-150.35,0.00049257,2]
[354397334,1740471037802,-609.15948214,0.00049381,15]
[354397335,1740471037811,-152.78,0.000494,120]
[354397336,1740471037821,-1500.0,0.000494,120]
[354397337,1740471037830,-1500.0,0.000496,2]
[354397338,1740471037840,-445.97693873,0.00049999,120]
[354397339,1740471037850,-166.11543631,0.00049999,120]
[354397340,1740471037862,-51872.88207806,0.0005,120]
[354397341,1740471037922,-150.0,0.00040024,2]
[354397342,1740471037932,-8864.89245754,0.0005,120]
[354397343,1740471037948,-5420.15237691,0.0005,120]
[354397344,1740471037966,-2116.61365778,0.0005,120]
[354397345,1740471037979,-1113.95109467,0.0005,120]
[354397346,1740471037990,-2694.39,0.0005,120]
[354397347,1740471038105,-390.92500024,0.0005,120]
[354397349,1740471038122,-156.12572956,0.00036599,2]
[354397351,1740471038133,-11170.47058756,0.0005,120]
[354397553,1740471039968,-13536.75,0.0005,120]
[354397562,1740471040043,-5248.32835901,0.0005,120]
[354397564,1740471040055,-453.4875,0.0005,120]
[354397566,1740471040067,-318.59164152,0.0005,120]
[354397574,1740471040134,-150.0,0.00040164,120]
[354397576,1740471040144,-6732.788907,0.0005,120]
[354397578,1740471040159,-460.194548,0.0005,120]
[354397584,1740471040207,-462.98349688,0.0005,120]
[354397859,1740471042985,-473.27733869,0.0005,7]
[354397864,1740471043013,-1819.72266131,0.0005,7]
[354397867,1740471043025,-43585.46924945,0.0005,120]
[354397873,1740471043061,-36011.17520001,0.0005,120]
[354397880,1740471043123,-1801.13508,0.0005,120]
[354397886,1740471043173,-8989.89956948,0.0005,120]
[354397890,1740471043203,-150.0,0.00042509,2]
[354397892,1740471043213,-8760.16325116,0.0005,120]
[354397895,1740471043228,-303.50573361,0.0005,120]
[354398229,1740471046345,-97691.25021112,0.0005,120]
[354398231,1740471046355,-125111.53594132,0.0005,120]
[354401843,1740471755452,235.18,8.767e-05,2]
[354401846,1740471908916,16764.82,0.0001,2]
[354401847,1740471908954,651.97969576,0.0001,2]
[354401861,1740472022484,400.0,9.4e-05,3]
[354401862,1740472024584,224.52772825,9.5e-05,3]
[354401863,1740472024610,675.47227175,9.5e-05,3]
[354401895,1740472207085,-1300.0,9.6e-05,3]
[354401897,1740472207117,-150.0,9.65e-05,2]
[354401899,1740472207147,-1800.0,9.7e-05,3]
[354401900,1740472207176,-150.0,9.78e-05,2]
[354401901,1740472207207,-544.35548359,9.8e-05,3]
[354401902,1740472207282,-1655.64451641,9.8e-05,3]
[354401903,1740472207314,-400.0,9.9e-05,3]
[354401905,1740472207343,-1888.71096718,9.9e-05,2]
[354401906,1740472207375,-3944.35548359,9.9e-05,2]
[354401908,1740472207412,-3944.35548359,9.9e-05,2]
[354401909,1740472207449,-3197.31362565,9.9e-05,2]
[354401920,1740472232024,-425.12328795,9.9e-05,2]
[354401921,1740472232036,-500.0,9.999e-05,2]
[354401922,1740472232046,-612.50925598,9.999e-05,2]
[354401923,1740472232056,-500.0,9.999e-05,2]
[354401924,1740472232065,-500.0,9.999e-05,2]
[354401925,1740472232075,-500.0,9.999e-05,2]
[354401926,1740472232084,-500.0,9.999e-05,2]
[354401927,1740472232094,-500.0,9.999e-05,2]
[354401928,1740472232104,-488.78809907,9.999e-05,2]
[354401929,1740472232113,-500.0,9.999e-05,2]
[354401930,1740472232123,-500.0,9.999e-05,2]
[354401931,1740472232133,-500.0,9.999e-05,2]
[354401932,1740472232143,-500.0,9.999e-05,2]
[354401933,1740472232152,-500.0,9.999e-05,2]
[354401934,1740472232161,-612.41320368,9.999e-05,2]
[354401935,1740472232171,-500.0,9.999e-05,2]
[354401936,1740472232180,-495.03892683,9.999e-05,2]
[354401937,1740472232189,-492.27589477,9.999e-05,2]
[354401938,1740472232198,-500.0,9.999e-05,2]
[354401939,1740472232208,-500.0,9.999e-05,2]
[354401940,1740472232218,-73810.2861467,0.0001,2]
[354401941,1740472232246,-6501.09895272,0.0001,2]
[354401942,1740472232259,-3983.15051641,0.0001,2]
[354401943,1740472232271,-838.4778,0.0001,2]
[354401944,1740472232283,-1145.30132552,0.0001,2]
[354401945,1740472232295,-3515.7431,0.0001,2]
[354401946,1740472232306,-493.78059,0.0001,2]
[354401947,1740472232331,-1032.43087862,0.0001,2]
[354401948,1740472232415,-994.23356734,0.0001,2]
[354401949,1740472232472,-5458.6877731,0.0001,2]
[354401952,1740472232484,-2110.98823624,0.0001,2]
[354402036,1740472237891,-1318.49755044,9.999e-05,2]
[354402037,1740472237900,-1073.13538806,0.0001,2]
[354402038,1740472237912,-840.11338738,0.0001,2]
[354402039,1740472237949,-9098235.10299522,0.0001,2]
[354402040,1740472238006,-380.94150885,0.0001,2]
[354402041,1740472238172,-10991.17998013,0.0001,2]
[354402055,1740472240045,-789.32438438,0.0001,2]
[354402056,1740472240297,-289.953,0.0001,2]
[354402484,1740472244405,-9028.83169202,0.0001,2]
[354402488,1740472244428,-15005.04365654,0.0001,2]
[354402581,1740472246080,-1711.28908306,0.0001,2]
[354402584,1740472246236,-3623.99015309,0.0001,2]
[354402587,1740472246258,-366.59878271,0.0001,2]
[354402589,1740472246270,-620.01882747,0.0001,2]
[354402591,1740472246281,-31045.37998147,0.0001,2]
[354402592,1740472246363,-5001.25253156,0.0001,2]
[354404166,1740472394910,-500.0,9.999e-05,2]
[354404168,1740472603289,-500.0,9.999e-05,2]
[354404169,1740472603332,-500.0,9.999e-05,2]
[354404170,1740472603383,-528.75647918,9.999e-05,2]
[354404171,1740472603427,-471.24352082,9.999e-05,2]
[354404179,1740472870708,160.97,8.767e-05,2]
[354404180,1740472923223,-400.0,0.0001,3]
[354404181,1740472977931,-1151.138,9.8e-05,2]
[354404182,1740472977958,-500.0,9.999e-05,2]
[354404183,1740472977985,-28.75647918,9.999e-05,2]
[354404184,1740472978011,-500.0,9.999e-05,2]
[354404185,1740472978040,-401.37924485,9.999e-05,2]
[354404186,1740472978067,-150.0,9.999e-05,2]
[354404187,1740472978095,-2268.72627597,0.0001,2]
[354404188,1740473003945,-50000.0,0.0001,2]
[354404189,1740473005309,-50000.0,0.0001,2]
[354404194,1740473158338,-8000.0,0.0001,2]
[354404200,1740473239956,1000.0,9e-05,9]
[354405236,1740473432186,-2185.53507333,0.0001,2]
[354405238,1740473432197,-4593.8179205,0.0001,2]
[354405244,1740473432349,-90246.03853355,0.0001,2]
[354405249,1740473432453,-475.85346013,0.0001,2]
[354405250,1740473432464,-42097.73069236,0.0001,2]
[354405252,1740473432476,-29154.20090426,0.0001,2]
[354405253,1740473432487,-295.95831041,0.0001,2]
[354405257,1740473432560,-184745.45662332,0.0001,2]
[354405258,1740473432572,-2244.13571821,0.0001,2]
[354405261,1740473432617,-2235.54614608,0.0001,2]
[354405263,1740473432667,-5608.84952252,0.0001,2]
[354405486,1740473438107,-19711.18211172,0.0001,2]
[354405559,1740473440158,-195.75467218,0.0001,2]
[354405560,1740473440199,-211.0437615,9.999e-05,2]
[354405561,1740473440208,-577.02413076,0.0001,2]
[354405562,1740473440219,-1801.155,0.0001,2]
[354405563,1740473440230,-733.31498966,0.0001,2]
[354405564,1740473440241,-483.74,0.0001,2]
[354405565,1740473440301,-140.26202472,0.0001,2]
[354405566,1740473440322,-376.91293587,0.0001,2]
[354405617,1740473443183,-2420.9,0.0001,2]
[354405621,1740473443651,-2801.80489333,0.0001,2]
[354405622,1740473443664,-4728.5,0.0001,2]
[354405623,1740473443676,-298.96,0.0001,2]
[354405624,1740473443689,-255.7682,0.0001,2]
[354405629,1740473444527,-1748.18064526,0.0001,2]
[354405638,1740473446216,-299.34994113,0.0001,2]
[354405639,1740473446270,-12862.13725134,0.0001,2]
[354405640,1740473446281,-216208.00896501,0.0001,2]
[354405641,1740473446290,-6825.8542665,0.0001,2]
[354405642,1740473446300,-332.8912856,0.0001,2]
[354405643,1740473446309,-477.75472762,0.0001,2]
[354405644,1740473446318,-1681.15541266,0.0001,2]
[354405645,1740473446327,-68223.54657001,0.0001,2]
[354405647,1740473446354,-180226.99999998,0.0001,2]
[354405648,1740473446535,-27093.70926,0.0001,2]
[354405676,1740473460124,1000.0,0.00019,120]
[354405677,1740473461655,1000.0,0.00019,120]
[354405681,1740473503340,1000.0,9e-05,10]
[354405682,1740473524576,-300.0,9.999e-05,2]
[354405734,1740473535495,-500.0,9.999e-05,2]
[354405803,1740473553803,245.45,8.772e-05,2]
[354406045,1740473888677,159.35,8.437e-05,2]
[354406046,1740473889268,150.35,8.767e-05,2]
[354407005,1740474516506,-607.47640851,9.8e-05,2]
[354407068,1740474632576,-365.22059149,9.8e-05,2]
[354407070,1740474632585,-150.0,9.998e-05,2]
[354407072,1740474632595,-500.0,9.999e-05,2]
[354407074,1740474632605,-500.0,9.999e-05,2]
[354407076,1740474632616,-166.11543631,9.999e-05,2]
[354407078,1740474632627,-583.75277679,9.999e-05,2]
[354407080,1740474632637,-445.97693873,9.999e-05,2]
[354407082,1740474632648,-488.78809907,9.999e-05,2]
[354407084,1740474632658,-492.27589477,9.999e-05,2]
[354407086,1740474632668,-500.0,9.999e-05,2]
[354407088,1740474632678,-500.0,9.999e-05,2]
[354407090,1740474632689,-495.03892683,9.999e-05,2]
[354407092,1740474632699,-500.0,9.999e-05,2]
[354407093,1740474632709,-500.0,9.999e-05,2]
[354407094,1740474632718,-500.0,9.999e-05,2]
[354407095,1740474632731,-251.17188331,9.999e-05,2]
[354407096,1740474632742,-500.0,9.999e-05,2]
[354407097,1740474632752,-500.0,9.999e-05,2]
[354407098,1740474632761,-500.0,9.999e-05,2]
[354407099,1740474632770,-18875.97380537,0.0001,2]
[354407100,1740474632781,-4160.68793876,0.0001,2]
[354407101,1740474632792,-1619.8182,0.0001,2]
[354407353,1740474638460,-322.64001024,0.0001,2]
[354407354,1740474638565,-5726.56722896,0.0001,2]
[354407373,1740474640363,-4092290.62970115,0.0001,2]
[354407374,1740474640373,-34680.46432854,0.0001,2]
[354407375,1740474640383,-304.55032163,0.0001,2]
[354407376,1740474640392,-195.91196862,0.0001,2]
[354407377,1740474640405,-378.55509429,0.0001,2]
[354407378,1740474640415,-1551.03564,0.0001,2]
[354407379,1740474640425,-625.60444822,0.0001,2]
[354407380,1740474640434,-6048.04740518,0.0001,2]
[354407381,1740474640444,-189.26679979,0.0001,2]
[354407382,1740474640453,-189.26679979,0.0001,2]
[354407383,1740474640463,-164.70362379,0.0001,2]
[354407384,1740474640472,-500.0,0.00010136,2]
[354407385,1740474640482,-290.2500826,0.0001017,2]
[354407386,1740474640493,-500.0,0.00010266,2]
[354407387,1740474640502,-192.59,0.00010272,2]
[354407388,1740474640512,-500.0,0.00010273,2]
[354407389,1740474640521,-500.0,0.0001041,2]
[354407390,1740474640532,-23900.0,0.00010547,2]
[354407391,1740474640542,-500.0,0.00010547,2]
[354407392,1740474640551,-290.2500826,0.00010587,2]
[354407393,1740474640561,-4400.0,0.00010594,2]
[354407394,1740474640571,-250.0,0.00010616,2]
[354407395,1740474640581,-500.0,0.00010684,2]
[354407396,1740474640591,-1500.0,0.00010708,2]
[354407397,1740474640600,-1000.0,0.0001073,2]
[354407398,1740474640609,-166.39,0.00010751,2]
[354407399,1740474640619,-150.0,0.0001078,2]
[354407400,1740474640628,-150.0,0.0001078,2]
[354407401,1740474640638,-150.0,0.0001078,2]
[354407402,1740474640648,-347.87715147,0.00010821,2]
[354407403,1740474640657,-2000.0,0.00010871,2]
[354407404,1740474640666,-150.0,0.00010959,2]
[354407409,1740474640835,-150.0,0.00010998,2]
[354407410,1740474640845,-245.45,0.00011036,2]
[354407411,1740474640854,-180.84,0.00011052,2]
[354407412,1740474640863,-2209.59802105,0.00011099,2]
[354407413,1740474640873,-2209.59802103,0.00011244,2]
[354407414,1740474640882,-500.0,0.00011761,2]
[354407415,1740474640891,-151.92,0.00012066,2]
[354407416,1740474640900,-233.58411766,0.0001207,2]
[354407418,1740474640909,-1000.0,0.00012071,2]
[354407420,1740474640918,-201.4809984,0.000125,2]
[354407422,1740474640928,-2209.59802103,0.00012588,2]
[354407424,1740474640937,-150.1,0.00013,2]
[354407426,1740474640947,-150.1,0.00013,2]
[354407428,1740474640958,-150.1,0.00013,2]
[354407430,1740474640967,-150.1,0.00013,2]
[354407432,1740474640976,-150.1,0.00013,2]
[354407434,1740474640985,-150.1,0.00013,2]
[354407436,1740474640995,-150.1,0.00013,2]
[354407439,1740474641006,-150.1,0.00013,2]
[354407441,1740474641015,-245.45,0.000133,2]
[354407443,1740474641026,-328094.98374215,0.0001337,2]
[354407445,1740474641037,-1000.0,0.00013413,2]
[354407447,1740474641047,-200.0,0.00013699,2]
[354407449,1740474641056,-2209.59802103,0.00013933,2]
[354407451,1740474641065,-192.59,0.0001438,2]
[354407452,1740474641075,-1000.0,0.00014754,2]
[354407454,1740474641084,-26102.2470111,0.000149,3]
[354407456,1740474641093,-1551.03565,0.00015,2]
[354407458,1740474641102,-999.0,0.00015068,2]
[354407460,1740474641112,-2209.59802103,0.00015277,2]
[354407462,1740474641122,-245.45,0.00015564,2]
[354407464,1740474641131,-201.48099836,0.00015789,2]
[354407466,1740474641140,-1000.0,0.00016095,2]
[354407468,1740474641149,-378.55509428,0.00016317,2]
[354407470,1740474641158,-152.11,0.00016438,2]
[354407472,1740474641167,-2209.59802103,0.00016621,2]
[354407474,1740474641175,-1037.86,0.0001726,4]
[354407476,1740474641184,-500.0,0.00017808,2]
[354407478,1740474641193,-245.45,0.00017828,2]
[354407480,1740474641202,-2209.59802103,0.00017965,2]
[354407482,1740474641212,-1703.25144527,0.000181,2]
[354407484,1740474641220,-1303.25704082,0.00018632,3]
[354407486,1740474641229,-200.28334407,0.00018684,2]
[354407488,1740474641238,-1296.91834467,0.000189,2]
[354407490,1740474641248,-480.24172359,0.00019,2]
[354407492,1740474641256,-941.90097527,0.00019,2]
[354407494,1740474641266,-200.0,0.00019,2]
[354407496,1740474641275,-200.0,0.0001919,2]
[354407498,1740474641284,-2209.59802103,0.0001931,2]
[354407499,1740474641293,-200.0,0.00019382,2]
[354407501,1740474641302,-151.36,0.00019397,30]
[354407503,1740474641311,-150.35,0.00019452,2]
[354407505,1740474641321,-293.24518102,0.000195,2]
[354407507,1740474641330,-200.0,0.00019576,2]
[354407509,1740474641339,-26374.09996801,0.000199,2]
[354407511,1740474641348,-956.29183621,0.0002,10]
[354407513,1740474641357,-400.42581624,0.0002,2]
[354407515,1740474641366,-1551.03565,0.0002,2]
[354407517,1740474641375,-245.45,0.00020092,2]
[354407518,1740474641384,-150.1,0.00020593,2]
[354407519,1740474641393,-191.03,0.000206,2]
[354407520,1740474641402,-500.0,0.00020603,2]
[354407521,1740474641411,-2209.59802103,0.00020654,2]
[354407522,1740474641420,-201.48099836,0.00020678,2]
[354407523,1740474641430,-500.0,0.00020735,2]
[354407524,1740474641439,-500.0,0.00020835,2]
[354407525,1740474641448,-20873.54820774,0.00021,30]
[354407526,1740474641457,-550.0,0.00021,2]
[354407527,1740474641466,-2209.59802103,0.00021998,2]
[354407528,1740474641475,-497.44510256,0.00022,2]
[354407529,1740474641487,-150.1,0.00022088,2]
[354407530,1740474641496,-100000.0,0.00022098,30]
[354407531,1740474641506,-100000.0,0.00022098,31]
[354407532,1740474641515,-100000.0,0.00022098,32]
[354407533,1740474641524,-22074.21254346,0.00022098,2]
[354407534,1740474641534,-100000.0,0.00022098,33]
[354407535,1740474641544,-21080.29305531,0.00022098,2]
[354407536,1740474641553,-100000.0,0.00022098,34]
[354407537,1740474641562,-15450.03790692,0.00022098,2]
[354407538,1740474641571,-9930.78238034,0.00022098,2]
[354407539,1740474641580,-1000.84837912,0.00022098,46]
[354407540,1740474641589,-245.45,0.00022356,2]
[354407541,1740474641599,-151.36,0.00022466,30]
[354407543,1740474641607,-378.55509428,0.00022733,2]
[354407544,1740474641616,-1416.48171595,0.00022743,2]
[354407545,1740474641625,-600.0,0.00023,2]
[354407546,1740474641634,-121962.3368038,0.00024,30]
[354407547,1740474641643,-245.45,0.0002462,2]
[354407548,1740474641653,-500.0,0.00024822,2]
[354407549,1740474641662,-497.44510256,0.00025,2]
[354407550,1740474641671,-1551.03565,0.00025,2]
[354407551,1740474641680,-11233.67550607,0.0002501,2]
[354407552,1740474641690,-3233.02837966,0.000251,2]
[354407553,1740474641699,-150.0,0.00025496,2]
[354407554,1740474641708,-151.36,0.00025534,30]
[354407555,1740474641718,-201.48099836,0.00025567,4]
[354407556,1740474641727,-513.3881,0.00025888,30]
[354407557,1740474641737,-22089.77827918,0.000259,7]
[354407558,1740474641746,-150.0,0.000265,2]
[354407559,1740474641755,-245.45,0.00026884,2]
[354407560,1740474641764,-4000.0,0.00027397,2]
[354407561,1740474641774,-181.21,0.000278,7]
[354407562,1740474641783,-195.9119686,0.000284,2]
[354407563,1740474641792,-151.36,0.00028603,30]
[354407564,1740474641801,-245.45,0.00029147,2]
[354407565,1740474641810,-378.55509428,0.0002915,2]
[354407566,1740474641819,-1416.48171595,0.00029164,2]
[354407567,1740474641828,-2316.0,0.000297,5]
[354407568,1740474641837,-6048.04740518,0.000299,2]
[354407569,1740474641847,-400.42581624,0.0003,2]
[354407570,1740474641856,-1551.03565,0.0003,2]
[354407571,1740474641866,-160.97,0.00030137,2]
[354407572,1740474641875,-150.35,0.00030137,2]
[354407573,1740474641884,-34995.87112863,0.00030187,3]
[354407574,1740474641893,-201.48099836,0.00030456,5]
[354407575,1740474641902,-500.0,0.00031151,2]
[354407576,1740474641911,-245.45,0.00031411,2]
[354407577,1740474641921,-151.36,0.00031671,30]
[354407578,1740474641930,-200.0,0.00032,30]
[354407579,1740474641938,-992.26855216,0.000325,30]
[354407580,1740474641947,-250.9,0.000335,31]
[354407581,1740474641956,-250.9,0.000335,31]
[354407582,1740474641965,-250.9,0.000335,31]
[354407583,1740474641974,-250.9,0.000335,31]
[354407584,1740474641984,-250.9,0.000335,31]
[354407585,1740474641995,-250.9,0.000335,31]
[354407586,1740474642008,-250.9,0.000335,31]
[354407587,1740474642018,-250.9,0.000335,31]
[354407588,1740474642027,-250.9,0.000335,31]
[354407589,1740474642039,-250.9,0.000335,31]
[354407590,1740474642051,-250.9,0.000335,31]
[354407591,1740474642060,-250.9,0.000335,31]
[354407592,1740474642069,-245.45,0.00033675,2]
[354407593,1740474642078,-4723.63859827,0.00034,2]
[354407594,1740474642087,-151.36,0.0003474,120]
[354407595,1740474642098,-972.698,0.0003485,40]
[354407596,1740474642107,-4586.97262945,0.00035,120]
[354407597,1740474642116,-1551.03565,0.00035,2]
[354407598,1740474642125,-250.9,0.000351,31]
[354407599,1740474642134,-250.9,0.000351,31]
[354407600,1740474642143,-250.9,0.000351,31]
[354407601,1740474642152,-250.9,0.000351,31]
[354407602,1740474642161,-250.9,0.000351,31]
[354407603,1740474642170,-250.9,0.000351,31]
[354407604,1740474642178,-250.9,0.000351,31]
[354407605,1740474642187,-250.9,0.000351,31]
[354407606,1740474642196,-250.9,0.000351,31]
[354407607,1740474642206,-250.9,0.000351,31]
[354407608,1740474642215,-250.9,0.000351,31]
[354407609,1740474642225,-250.9,0.000351,31]
[354407610,1740474642235,-250.9,0.000351,31]
[354407611,1740474642245,-250.9,0.000351,31]
[354407612,1740474642257,-250.9,0.000351,31]
[354407613,1740474642267,-250.9,0.000351,31]
[354407614,1740474642277,-250.9,0.000351,31]
[354407615,1740474642286,-250.9,0.000351,31]
[354407616,1740474642295,-250.9,0.000351,31]
[354407617,1740474642304,-250.9,0.000351,31]
[354407618,1740474642313,-250.9,0.000351,31]
[354407619,1740474642322,-250.9,0.000351,31]
[354407620,1740474642332,-250.9,0.000351,31]
[354407621,1740474642341,-250.9,0.000351,31]
[354407622,1740474642351,-201.48099836,0.00035344,7]
[354407623,1740474642361,-500.0,0.000355,30]
[354407624,1740474642371,-500.0,0.000355,30]
[354407625,1740474642380,-500.0,0.000355,30]
[354407626,1740474642389,-378.55509428,0.00035567,2]
[354407627,1740474642398,-1416.48171595,0.00035586,7]
[354407628,1740474642407,-500.0,0.00035774,30]
[354407629,1740474642416,-500.0,0.00035774,30]
[354407630,1740474642425,-245.45,0.00035939,2]
[354407631,1740474642434,-150.1,0.0003599,2]
[354407632,1740474642443,-100000.0,0.00036,36]
[354407633,1740474642452,-500.0,0.00036048,30]
[354407634,1740474642462,-500.0,0.00036048,30]
[354407635,1740474642471,-164.14,0.00036206,120]
[354407636,1740474642479,-150.0,0.00036292,30]
[354407637,1740474642489,-1481.06066343,0.00036292,30]
[354407638,1740474642498,-500.0,0.00036322,30]
[354407639,1740474642507,-500.0,0.00036322,30]
[354407640,1740474642517,-5597.095875,0.00036555,120]
[354407641,1740474642526,-5597.095875,0.00036566,120]
[354407642,1740474642535,-500.0,0.00036596,30]
[354407643,1740474642544,-993.16,0.00036596,30]
[354407644,1740474642553,-5597.095875,0.00036668,120]
[354407645,1740474642563,-5597.095875,0.00036684,120]
[354407646,1740474642571,-250.9,0.000367,31]
[354407647,1740474642580,-250.9,0.000367,31]
[354407648,1740474642589,-250.9,0.000367,31]
[354407649,1740474642598,-250.9,0.000367,31]
[354407650,1740474642611,-250.9,0.000367,31]
[354407651,1740474642620,-250.9,0.000367,31]
[354407652,1740474642629,-250.9,0.000367,31]
[354407653,1740474642639,-250.9,0.000367,31]
[354407654,1740474642648,-250.9,0.000367,31]
[354407655,1740474642657,-250.9,0.000367,31]
[354407656,1740474642666,-250.9,0.000367,31]
[354407657,1740474642675,-250.9,0.000367,31]
[354407658,1740474642684,-250.9,0.000367,31]
[354407659,1740474642693,-250.9,0.000367,31]
[354407660,1740474642702,-250.9,0.000367,31]
[354407661,1740474642712,-250.9,0.000367,31]
[354407662,1740474642721,-250.9,0.000367,31]
[354407663,1740474642731,-250.9,0.000367,31]
[354407664,1740474642742,-250.9,0.000367,31]
[354407665,1740474642751,-250.9,0.000367,31]
[354407666,1740474642761,-250.9,0.000367,31]
[354407667,1740474642771,-250.9,0.000367,31]
[354407668,1740474642780,-250.9,0.000367,31]
[354407669,1740474642790,-250.9,0.000367,31]
[354407670,1740474642800,-500.0,0.0003687,30]
[354407671,1740474642809,-100000.0,0.00037,37]
[354407672,1740474642818,-151.0,0.00037,7]
[354407673,1740474642827,-151.0,0.00037,7]
[354407674,1740474642837,-151.545962,0.00037,7]
[354407675,1740474642846,-2054.0,0.00037,117]
[354407676,1740474642855,-151.0,0.00037,7]
[354407677,1740474642864,-151.0,0.00037,7]
[354407678,1740474642873,-151.0,0.00037,7]
[354407679,1740474642883,-151.0,0.00037,7]
[354407680,1740474642891,-151.0,0.00037,7]
[354407681,1740474642901,-151.0,0.00037,7]
[354407682,1740474642910,-151.0,0.00037,7]
[354407683,1740474642920,-151.0,0.00037,7]
[354407684,1740474642930,-151.0,0.00037,7]
[354407685,1740474642939,-151.0,0.00037,7]
[354407686,1740474642947,-151.0,0.00037,7]
[354407687,1740474642956,-151.530562,0.00037,7]
[354407688,1740474642966,-151.0,0.00037,7]
[354407689,1740474642974,-151.0,0.00037,7]
[354407690,1740474642983,-151.0,0.00037,7]
[354407691,1740474642993,-151.655388,0.00037,7]
[354407692,1740474643004,-151.0,0.00037,7]
[354407693,1740474643013,-151.223642,0.00037,7]
[354407694,1740474643023,-151.0,0.00037,7]
[354407695,1740474643034,-151.0,0.00037,7]
[354407696,1740474643043,-8604.415135,0.00037,7]
[354407697,1740474643052,-8604.415135,0.00037,7]
[354407698,1740474643061,-500.0,0.00037144,30]
[354407699,1740474643073,-3289.50187177,0.0003722,2]
[354407700,1740474643083,-500.0,0.00037418,30]
[354407701,1740474643092,-297.0,0.000375,2]
[354407702,1740474643103,-500.0,0.00037692,30]
[354407703,1740474643113,-151.36,0.00037808,120]
[354407706,1740474643122,-500.0,0.00037966,30]
[354407707,1740474643131,-100000.0,0.00038,38]
[354407708,1740474643140,-151.0,0.00038,7]
[354407709,1740474643150,-151.0,0.00038,7]
[354407710,1740474643159,-151.0,0.00038,7]
[354407712,1740474643169,-151.0,0.00038,7]
[354407713,1740474643179,-151.0,0.00038,7]
[354407714,1740474643188,-151.0,0.00038,7]
[354407715,1740474643197,-151.0,0.00038,7]
[354407716,1740474643206,-151.0,0.00038,7]
[354407717,1740474643216,-151.781349,0.00038,7]
[354407718,1740474643226,-151.0,0.00038,7]
[354407719,1740474643235,-250.9,0.000382,31]
[354407720,1740474643246,-250.9,0.000382,31]
[354407721,1740474643255,-250.9,0.000382,31]
[354407722,1740474643264,-250.9,0.000382,31]
[354407723,1740474643274,-250.9,0.000382,31]
[354407724,1740474643283,-250.9,0.000382,31]
[354407726,1740474643293,-250.9,0.000382,31]
[354407728,1740474643303,-250.9,0.000382,31]
[354407730,1740474643311,-250.9,0.000382,31]
[354407732,1740474643321,-250.9,0.000382,31]
[354407733,1740474643330,-250.9,0.000382,31]
[354407735,1740474643339,-250.9,0.000382,31]
[354407737,1740474643349,-250.9,0.000382,31]
[354407739,1740474643358,-250.9,0.000382,31]
[354407741,1740474643367,-250.9,0.000382,31]
[354407743,1740474643377,-250.9,0.000382,31]
[354407745,1740474643386,-250.9,0.000382,31]
[354407747,1740474643395,-250.9,0.000382,31]